bitfinex-derivatives/quotes_SOLF0:USTF0_20241227
["timestamp","ask_amount","ask_price","bid_price","bid_amount"]
[1735338014048,2.7012,185.37,185.36,3.16]
[1735338015253,8.07977999,185.38,185.36,3.16]
[1735338015957,2.7012,185.37,185.36,3.16]
[1735338016355,8.07977999,185.38,185.3,8.07977999]
[1735338016652,8.07977999,185.36,185.31,3.16]
[1735338016860,8.07977999,185.34,185.32,3.16]
[1735338017057,8.07977999,185.34,185.33,3.16]
[1735338017448,8.07977999,185.34,185.24,2.703]
[1735338017650,8.07977999,185.31,185.25,3.16]
[1735338018358,28.55646257,185.38,185.24,8.07977999]
[1735338018558,8.07977999,185.32,185.25,3.16]
[1735338018754,8.07977999,185.3,185.25,3.16]
[1735338019358,2.7028,185.26,185.25,3.16]
[1735338021162,8.07977999,185.3,185.25,3.16]
[1735338021559,8.07977999,185.28,185.26,3.14]
[1735338021757,2.7026,185.27,185.26,3.14]
[1735338023860,8.07977999,185.28,185.2,8.07977999]
[1735338023861,2.7034,185.22,185.2,8.07977999]
[1735338024059,2.7034,185.22,185.21,3.14]
[1735338027060,2.7037,185.2,185.18,8.07977999]
[1735338027260,2.7037,185.2,185.19,3.14]
[1735338029168,2.7037,185.2,185.18,8.07977999]
[1735338029467,2.7037,185.2,185.19,3.14]
[1735338030458,12.31330207,185.31,185.19,3.14]
[1735338030459,2.7035,185.22,185.19,3.14]
[1735338030660,8.07977999,185.29,185.21,8.07977999]
[1735338032267,8.07977999,185.28,185.21,8.07977999]
[1735338032471,2.7033,185.23,185.21,8.07977999]
[1735338034875,8.07977999,185.28,185.21,8.07977999]
[1735338035168,2.7034,185.22,185.21,8.07977999]
[1735338047882,1.5591,185.32,185.21,10.78327999]
[1735338048074,1.5591,185.32,185.25,8.07977999]
[1735338048279,9.72207999,185.33,185.26,3.14]
[1735338048479,8.07977999,185.33,185.26,3.14]
[1735338050283,2.7024,185.29,185.26,3.14]
[1735338055694,7.48933266,185.35,185.28,8.07977999]
[1735338055896,7.48933266,185.35,185.3,8.07977999]
[1735338056190,7.48933266,185.35,185.31,3.14]
[1735338056391,2.7018,185.34,185.31,3.14]
[1735338056694,7.48933266,185.35,185.31,3.14]
[1735338056892,10.19083266,185.35,185.31,3.14]
[1735338057196,7.48933266,185.35,185.32,8.07977999]
[1735338057397,38.03711063,185.38,185.32,8.07977999]
[1735338058294,29.95733064,185.38,185.32,8.07977999]
[1735338058593,8.07977999,185.4,185.32,8.07977999]
[1735338059294,29.95733064,185.42,185.32,8.07977999]
[1735338059495,8.07977999,185.4,185.32,10.78167999]
[1735338060395,7.48933266,185.42,185.34,8.07977999]
[1735338060596,8.07977999,185.41,185.34,8.07977999]
[1735338060997,2.7012,185.37,185.34,8.07977999]
[1735338061494,8.07977999,185.41,185.34,8.07977999]
[1735338062097,2.7014,185.36,185.33,8.07977999]
[1735338067496,2.7008,185.4,185.35,10.78107999]
[1735338067696,8.07977999,185.43,185.36,11.21977999]
[1735338068097,8.07977999,185.43,185.36,3.14]
[1735338068298,8.07977999,185.43,185.32,2.7019]
[1735338068500,8.07977999,185.43,185.34,8.07977999]
[1735338068802,2.7013,185.37,185.36,8.07977999]
[1735338071101,2.7011,185.38,185.36,8.07977999]
[1735338073701,2.7006,185.41,185.36,8.07977999]
[1735338073903,8.07977999,185.43,185.36,8.07977999]
[1735338074202,2.7012,185.37,185.33,5.8416]
[1735338074403,2.7012,185.37,185.34,8.07977999]
[1735338076002,2.7014,185.36,185.34,8.07977999]
[1735338076305,2.7014,185.36,185.33,3.14]
[1735338076600,9.08183266,185.46,185.3,3.2584]
[1735338076601,2.7016,185.34,185.3,14.04027999]
[1735338076805,8.07977999,185.37,185.31,3.14]
[1735338077004,8.07977999,185.37,185.3,8.07977999]
[1735338077211,8.07977999,185.37,185.32,3.14]
[1735338077398,1.6957,185.44,185.32,3.14]
[1735338077604,8.07977999,185.37,185.32,3.14]
[1735338079006,8.07977999,185.39,185.32,3.14]
[1735338079212,2.7012,185.37,185.32,3.14]
[1735338079405,8.07977999,185.39,185.32,3.14]
[1735338079708,8.07977999,185.39,185.32,11.21977999]
[1735338080100,2.7016,185.35,185.32,11.21977999]
[1735338081313,8.07977999,185.41,185.34,8.07977999]
[1735338081511,2.7013,185.36,185.34,8.07977999]
[1735338084511,2.7012,185.38,185.33,2.7017]
[1735338085010,8.07977999,185.41,185.32,11.21977999]
[1735338085212,8.07977999,185.41,185.32,13.92167999]
[1735338085614,2.7013,185.37,185.32,13.92167999]
[1735338085808,2.7013,185.37,185.34,8.07977999]
[1735338096821,8.07977999,185.4,185.35,3.14]
[1735338097121,8.07977999,185.4,185.36,3.14]
[1735338097718,2.7012,185.37,185.36,3.14]
[1735338097920,8.07977999,185.38,185.33,3.14]
[1735338098820,2.7016,185.34,185.33,3.14]
[1735338102823,8.07977999,185.38,185.3,8.07977999]
[1735338103016,2.7019,185.32,185.31,3.14]
[1735338103915,2.7023,185.3,185.25,5.9]
[1735338104116,8.07977999,185.34,185.26,11.21977999]
[1735338105222,2.7024,185.29,185.26,11.21977999]
[1735338107122,2.7025,185.28,185.26,11.21977999]
[1735338107620,2.7026,185.27,185.26,3.14]
[1735338108426,8.07977999,185.32,185.25,8.07977999]
[1735338108627,2.7029,185.25,185.24,1.93267129]
[1735338108926,2.7029,185.25,185.24,5.07267129]
[1735338109319,2.7029,185.25,185.24,1.93267129]
[1735338109523,2.7029,185.25,185.24,5.07267129]
[1735338110523,2.7027,185.27,185.24,5.07267129]
[1735338110827,2.7027,185.27,185.25,8.07977999]
[1735338111530,2.7024,185.29,185.25,8.07977999]
[1735338111723,2.7024,185.29,185.28,8.07977999]
[1735338112924,8.07977999,185.35,185.28,8.07977999]
[1735338113131,2.7022,185.3,185.29,3.14]
[1735338113323,31.53973064,185.38,185.29,3.14]
[1735338113523,8.07977999,185.37,185.3,8.07977999]
[1735338115338,2.7018,185.33,185.3,8.07977999]
[1735338115730,1.5439,185.39,185.3,8.07977999]
[1735338115941,9.62367999,185.39,185.3,8.07977999]
[1735338116434,2.7017,185.34,185.3,8.07977999]
[1735338116630,2.7017,185.34,185.32,8.07977999]
[1735338117033,2.7022,185.3,185.29,3.14]
[1735338130156,2.7028,185.26,185.24,10.01245128]
[1735338130352,8.07977999,185.31,185.24,1.93267129]
[1735338130549,8.07977999,185.31,185.25,3.14]
[1735338130945,1.6719,185.35,185.26,8.07977999]
[1735338131154,8.07977999,185.34,185.26,8.07977999]
[1735338131347,15.56911265,185.34,185.26,8.07977999]
[1735338131554,8.07977999,185.32,185.25,3.14]
[1735338132445,2.7025,185.28,185.25,3.14]
[1735338133445,8.07977999,185.29,185.17,3.1115]
[1735338133650,8.07977999,185.27,185.19,8.07977999]
[1735338133953,8.07977999,185.27,185.2,3.14]
[1735338134155,2.7035,185.22,185.2,3.14]
[1735338135058,2.7035,185.21,185.2,3.14]
[1735338135756,8.07977999,185.29,185.2,3.14]
[1735338135957,2.7028,185.26,185.21,8.07977999]
[1735338136158,7.48933266,185.3,185.23,8.07977999]
[1735338136457,7.48933266,185.3,185.27,8.07977999]
[1735338136646,7.48933266,185.3,185.28,3.14]
[1735338137359,8.07977999,185.34,185.28,3.14]
[1735338137658,2.7024,185.29,185.28,3.14]
[1735338146961,2.7022,185.3,185.28,3.14]
[1735338147960,2.702,185.32,185.28,5.8425]
[1735338148355,8.07977999,185.36,185.29,8.07977999]
[1735338149468,2.7017,185.34,185.3,2.7022]
[1735338150163,8.07977999,185.36,185.3,2.7022]
[1735338150361,2.7018,185.33,185.3,2.7022]
[1735338153465,2.7016,185.35,185.31,10.78167999]
[1735338154064,9.16923266,185.4,185.33,8.07977999]
[1735338154065,2.7013,185.37,185.33,8.07977999]
[1735338154263,15.56911265,185.4,185.34,3.14]
[1735338155057,2.7011,185.38,185.34,5.8416]
[1735338156067,8.07977999,185.42,185.35,10.78117999]
[1735338156268,2.7007,185.4,185.35,10.78117999]
[1735338156570,8.07977999,185.42,185.35,10.78117999]
[1735338156768,2.7009,185.4,185.35,10.78117999]
[1735338157171,2.7009,185.4,185.36,2.7013]
[1735338159965,8.07977999,185.42,185.35,8.07977999]
[1735338160162,2.7002,185.44,185.4,2.7006]
[1735338160367,2.7002,185.44,185.41,3.14]
[1735338160871,10.77997999,185.44,185.41,3.14]
[1735338164873,8.07977999,185.44,185.41,3.14]
[1735338165067,2.7003,185.43,185.41,3.14]
[1735338166572,2.7002,185.44,185.41,3.14]
[1735338167875,8.07977999,185.46,185.39,10.78067999]
[1735338168075,2.7004,185.43,185.4,3.14]
[1735338170875,2.7005,185.42,185.4,3.14]
[1735338172476,2.7,185.45,185.4,5.8406]
[1735338172678,58.46540552,185.47,185.4,3.14]
[1735338172873,8.07977999,185.46,185.4,3.14]
[1735338174477,2.7004,185.43,185.4,3.14]
[1735338174978,8.07977999,185.46,185.4,3.14]
[1735338174979,2.7002,185.44,185.4,5.8406]
[1735338175179,2.7002,185.44,185.4,3.14]
[1735338175678,2.7002,185.44,185.4,5.8407]
[1735338176974,1.53568232,185.47,185.4,3.14]
[1735338177181,2.7001,185.45,185.41,10.78027999]
[1735338182182,2.7002,185.44,185.41,10.78027999]
[1735338185084,2.6999,185.47,185.43,10.77997999]
[1735338191791,1.5362,185.52,185.45,8.07977999]
[1735338191993,8.07977999,185.53,185.46,3.14]
[1735338192184,8.07977999,185.53,185.47,3.14]
[1735338192386,8.07977999,185.51,185.48,3.14]
[1735338192788,2.6993,185.5,185.48,3.14]
[1735338193893,2.6994,185.49,185.48,3.14]
[1735338201399,2.6993,185.51,185.48,3.14]
[1735338201598,8.07977999,185.54,185.48,3.14]
[1735338201998,2.6991,185.52,185.48,3.14]
[1735338202202,1.53486614,185.55,185.49,8.07977999]
[1735338203501,2.6989,185.53,185.49,10.77917999]
[1735338205206,2.6989,185.53,185.51,8.07977999]
[1735338207006,8.07977999,185.54,185.44,44.87732626]
[1735338207200,8.07977999,185.54,185.47,8.07977999]
[1735338207694,8.07977999,185.54,185.42,3.3152]
[1735338207900,8.07977999,185.52,185.45,8.07977999]
[1735338208597,2.6998,185.47,185.45,8.07977999]
[1735338209103,2.6996,185.48,185.45,8.07977999]
[1735338210206,8.07977999,185.52,185.45,8.07977999]
[1735338210401,2.6999,185.46,185.45,8.07977999]
[1735338211703,8.07977999,185.52,185.45,8.07977999]
[1735338211906,2.6997,185.47,185.45,8.07977999]
[1735338212606,2.6997,185.47,185.43,11.21977999]
[1735338214406,2.6997,185.47,185.43,13.92007999]
[1735338214709,8.07977999,185.52,185.43,3.14]
[1735338214912,2.7001,185.45,185.43,11.21977999]
[1735338215707,2.7002,185.44,185.41,9.76387999]
[1735338215907,2.7002,185.44,185.42,3.14]
[1735338216104,2.7002,185.44,185.43,3.14]
[1735338220013,2.7,185.45,185.43,3.14]
[1735338222112,8.07977999,185.46,185.43,3.14]
[1735338222807,8.07977999,185.46,185.39,8.07977999]
[1735338223011,8.07977999,185.44,185.4,3.14]
[1735338223408,2.7006,185.41,185.4,3.14]
[1735338223604,22.85163163,185.5,185.4,3.14]
[1735338223915,8.07977999,185.44,185.4,3.14]
[1735338224612,2.7006,185.41,185.4,3.14]
[1735338230918,8.07977999,185.44,185.4,3.14]
[1735338231215,1.5479,185.46,185.4,3.14]
[1735338231416,8.07977999,185.45,185.4,3.14]
[1735338233414,2.7006,185.41,185.4,3.14]
[1735338241326,2.7008,185.4,185.37,8.07977999]
[1735338241519,2.7008,185.4,185.38,3.14]
[1735338251904,2.7009,185.39,185.38,3.14]
[1735338253618,2.7013,185.36,185.35,1.6988]
[1735338253907,8.07977999,185.41,185.35,3.14]
[1735338255366,8.07977999,185.41,185.32,8.07977999]
[1735338255882,2.7017,185.34,185.33,3.14]
[1735338256769,8.07977999,185.37,185.29,8.07977999]
[1735338256973,8.07977999,185.37,185.33,3.14]
[1735338257316,2.7016,185.34,185.33,3.14]
[1735338257775,8.07977999,185.39,185.33,3.14]
[1735338257970,2.7011,185.38,185.33,3.14]
[1735338258170,8.07977999,185.39,185.33,3.14]
[1735338259473,2.7016,185.34,185.33,3.14]
[1735338261613,1.6768,185.4,185.27,8.07977999]
[1735338261614,2.7022,185.3,185.27,8.07977999]
[1735338261777,2.7022,185.3,185.28,3.14]
[1735338263165,2.7022,185.3,185.29,8.07977999]
[1735338263875,2.7022,185.3,185.29,11.21977999]
[1735338264466,2.7022,185.3,185.29,3.14]
[1735338264663,2.7024,185.29,185.28,8.07977999]
[1735338264874,2.7024,185.29,185.28,11.21977999]
[1735338265369,8.07977999,185.37,185.28,11.21977999]
[1735338265566,2.702,185.32,185.31,8.07977999]
[1735338266567,2.7014,185.36,185.31,8.07977999]
[1735338266760,8.07977999,185.37,185.31,8.07977999]
[1735338266959,1.6768,185.4,185.31,8.07977999]
[1735338267159,9.75657999,185.4,185.33,8.07977999]
[1735338267454,9.75657999,185.4,185.34,3.14]
[1735338267844,2.7015,185.35,185.34,3.14]
[1735338268041,8.07977999,185.38,185.34,3.14]
[1735338268241,2.701,185.39,185.34,3.14]
[1735338268443,8.07977999,185.39,185.34,3.14]
[1735338269443,2.7014,185.36,185.34,3.14]
[1735338270942,8.07977999,185.41,185.34,3.14]
[1735338271142,2.7012,185.37,185.34,3.14]
[1735338272742,2.7012,185.37,185.34,11.21977999]
[1735338273040,1.6434,185.44,185.34,11.21977999]
[1735338273241,2.7008,185.4,185.35,2.7014]
[1735338274349,8.07977999,185.42,185.34,11.21977999]
[1735338274350,2.7006,185.41,185.36,10.78107999]
[1735338276048,2.7008,185.4,185.36,10.78107999]
[1735338280852,2.7008,185.4,185.36,8.07977999]
[1735338281150,2.7008,185.4,185.37,2.7011]
[1735338285556,8.07977999,185.44,185.37,2.7011]
[1735338285756,2.7006,185.42,185.37,2.7011]
[1735338285952,8.07977999,185.44,185.36,8.07977999]
[1735338286255,2.7006,185.42,185.38,2.701]
[1735338286557,2.7006,185.42,185.39,3.14]
[1735338287058,8.07977999,185.44,185.39,3.14]
[1735338287257,2.7006,185.41,185.39,3.14]
[1735338290162,2.7005,185.42,185.39,5.8408]
[1735338290863,2.7005,185.42,185.39,3.14]
[1735338293264,10.77997999,185.44,185.4,2.7007]
[1735338295964,2.7003,185.43,185.41,3.14]
[1735338302069,2.7004,185.42,185.41,3.14]
[1735338302465,7.48933266,185.5,185.41,3.14]
[1735338302661,8.07977999,185.48,185.41,3.14]
[1735338302865,8.07977999,185.48,185.41,11.21977999]
[1735338303267,2.7,185.46,185.42,2.7004]
[1735338303465,8.07977999,185.48,185.42,2.7004]
[1735338304372,2.6998,185.47,185.42,2.7004]
[1735338304573,8.07977999,185.48,185.42,2.7004]
[1735338305473,2.7,185.46,185.42,2.7004]
[1735338306572,2.6999,185.46,185.41,5.8405]
[1735338307877,8.07977999,185.48,185.41,13.92027999]
[1735338308067,2.7001,185.45,185.41,13.92027999]
[1735338308574,2.7002,185.44,185.41,13.92027999]
[1735338312177,2.7001,185.45,185.41,13.92027999]
[1735338312372,29.95733064,185.52,185.43,8.07977999]
[1735338312576,8.07977999,185.5,185.43,8.07977999]
[1735338313579,2.6997,185.47,185.44,2.7]
[1735338313973,2.6997,185.47,185.43,10.78007999]
[1735338314978,2.6997,185.47,185.44,2.7001]
[1735338316278,2.6996,185.48,185.44,2.7001]
[1735338316675,2.6996,185.48,185.45,2.7]
[1735338316876,2.6996,185.48,185.46,3.14]
[1735338320179,2.6992,185.51,185.47,2.6996]
[1735338320374,2.6992,185.51,185.46,3.14]
[1735338321282,2.699,185.52,185.48,2.6996]
[1735338321577,7.48933266,185.54,185.49,3.14]
[1735338321767,8.07977999,185.52,185.49,3.14]
[1735338322369,64.39509937,185.56,185.49,3.14]
[1735338322572,2.6992,185.51,185.49,3.14]
[1735338325577,2.6992,185.51,185.47,2.6997]
[1735338325578,2.6993,185.5,185.47,2.6997]
[1735338325781,8.07977999,185.49,185.48,3.14]
[1735338325979,8.07977999,185.49,185.47,3.14]
[1735338326182,2.6996,185.48,185.47,3.14]
[1735338330289,8.07977999,185.49,185.4,3.1714]
[1735338330290,8.07977999,185.49,185.4,5.8721]
[1735338330487,8.07977999,185.47,185.41,3.14]
[1735338330789,2.7001,185.45,185.41,3.14]
[1735338330990,8.07977999,185.49,185.42,2.7003]
[1735338332283,8.07977999,185.49,185.43,3.14]
[1735338332488,2.6999,185.46,185.43,3.14]
[1735338332894,8.07977999,185.49,185.43,3.14]
[1735338333094,2.7,185.45,185.43,3.14]
[1735338334998,2.7002,185.44,185.43,3.14]
[1735338335496,2.6997,185.48,185.43,3.14]
[1735338335698,8.07977999,185.49,185.43,3.14]
[1735338336395,2.7,185.45,185.43,3.14]
[1735338337694,29.95733064,185.51,185.43,3.14]
[1735338337892,2.6997,185.48,185.44,2.7001]
[1735338338093,8.07977999,185.5,185.43,11.21977999]
[1735338338290,8.07977999,185.5,185.43,3.14]
[1735338338690,2.6999,185.47,185.43,5.8403]
[1735338338894,2.6999,185.47,185.43,3.14]
[1735338339295,8.07977999,185.5,185.43,3.14]
[1735338339496,2.6999,185.46,185.43,3.14]
[1735338341496,2.6999,185.46,185.43,5.8403]
[1735338342296,2.6998,185.47,185.43,5.8403]
[1735338342491,2.6998,185.47,185.44,8.07977999]
[1735338343498,8.07977999,185.5,185.44,8.07977999]
[1735338343700,2.6996,185.48,185.45,2.7]
[1735338344504,2.6996,185.48,185.44,2.7001]
[1735338344708,2.6996,185.48,185.44,10.77987999]
[1735338347108,2.6993,185.5,185.46,2.6997]
[1735338347308,2.6993,185.5,185.44,8.07977999]
[1735338348308,8.07977999,185.52,185.46,8.07977999]
[1735338348508,2.6992,185.51,185.46,8.07977999]
[1735338349408,2.6992,185.51,185.48,2.6995]
[1735338349611,2.6989,185.53,185.49,3.14]
[1735338350308,2.6989,185.53,185.49,5.8394]
[1735338356310,7.48933266,185.54,185.49,3.14]
[1735338356515,10.18813266,185.54,185.5,2.6992]
[1735338356912,2.6988,185.54,185.5,2.6992]
[1735338357715,2.6986,185.55,185.51,2.699]
[1735338360717,8.07977999,185.57,185.51,2.699]
[1735338361022,2.6987,185.54,185.51,2.699]
[1735338364929,2.6987,185.54,185.5,2.6992]
[1735338368729,2.6987,185.54,185.51,8.07977999]
[1735338378334,2.6991,185.51,185.49,11.21977999]
[1735338378530,56.8947079,185.58,185.49,3.14]
[1735338378831,8.07977999,185.54,185.49,3.14]
[1735338380430,2.6991,185.52,185.49,3.14]
[1735338381834,2.6991,185.52,185.49,5.8393]
[1735338384038,2.6991,185.52,185.49,13.91907999]
[1735338385431,8.07977999,185.56,185.49,13.91907999]
[1735338385734,2.6989,185.53,185.49,13.91907999]
[1735338388439,2.6989,185.53,185.5,2.6993]
[1735338392640,8.07977999,185.56,185.49,3.14]
[1735338392945,8.07977999,185.55,185.5,3.12]
[1735338393946,2.6991,185.52,185.5,3.12]
[1735338397151,8.07977999,185.55,185.5,3.12]
[1735338397350,2.6989,185.53,185.5,3.12]
[1735338398545,2.6989,185.53,185.5,5.8192]
[1735338400047,2.6987,185.54,185.5,5.8192]
[1735338401144,2.6987,185.54,185.51,3.12]
[1735338407549,2.6989,185.53,185.51,3.12]
[1735338409056,2.699,185.52,185.51,3.12]
[1735338415759,8.07977999,185.52,185.43,2.7002]
[1735338415955,8.07977999,185.52,185.44,11.19977999]
[1735338416160,10.73570648,185.54,185.44,11.19977999]
[1735338416361,8.07977999,185.52,185.44,11.19977999]
[1735338417458,2.6998,185.47,185.44,11.19977999]
[1735338418160,2.6998,185.47,185.45,3.12]
[1735338419862,8.07977999,185.52,185.45,3.12]
[1735338420162,2.6999,185.46,185.45,3.12]
[1735338424566,2.6999,185.46,185.44,8.07977999]
[1735338424864,2.6999,185.46,185.45,3.12]
[1735338427970,8.07977999,185.5,185.42,50.48]
[1735338428170,8.07977999,185.48,185.43,3.12]
[1735338429465,2.7002,185.44,185.43,3.12]
[1735338432072,8.07977999,185.48,185.42,50.48]
[1735338432373,2.7003,185.43,185.42,50.48]
[1735338432872,2.7003,185.43,185.42,53.6]
[1735338437671,8.07977999,185.46,185.42,3.12]
[1735338438174,2.7003,185.43,185.42,3.12]
[1735338443080,2.7003,185.43,185.4,3.12]
[1735338443280,8.07977999,185.44,185.4,3.12]
[1735338443881,2.7006,185.41,185.4,3.12]
[1735338444673,2.701,185.38,185.36,11.27117999]
[1735338444872,2.701,185.38,185.37,3.12]
[1735338460299,7.48933266,185.46,185.37,3.12]
[1735338460494,8.07977999,185.43,185.37,3.12]
[1735338461389,2.7009,185.39,185.37,3.12]
[1735338476909,8.07977999,185.42,185.31,1.5841]
[1735338477208,2.7015,185.35,185.34,8.07977999]
[1735338478709,2.7015,185.35,185.34,3.12]
[1735338489015,2.7014,185.36,185.34,3.12]
[1735338492128,2.7015,185.35,185.34,3.12]
[1735338492721,2.7015,185.35,185.3,2.7022]
[1735338492925,2.7015,185.35,185.31,3.12]
[1735338495629,2.7016,185.34,185.31,3.12]
[1735338501141,7.48933266,185.4,185.33,8.07977999]
[1735338501735,29.95733064,185.4,185.35,8.07977999]
[1735338501934,29.95733064,185.4,185.36,3.12]
[1735338502131,32.65813064,185.4,185.36,5.8213]
[1735338503038,2.7008,185.4,185.36,5.8213]
[1735338505040,2.7008,185.4,185.37,3.12]
[1735338509937,8.07977999,185.41,185.37,3.12]
[1735338510241,2.7009,185.39,185.37,3.12]
[1735338512242,8.07977999,185.41,185.37,3.12]
[1735338512442,2.701,185.38,185.37,3.12]
[1735338522946,7.48933266,185.45,185.39,8.07977999]
[1735338523352,7.48933266,185.45,185.38,8.07977999]
[1735338523852,2.7002,185.44,185.39,2.7009]
[1735338524154,29.95733064,185.48,185.37,3.12]
[1735338524155,38.03711063,185.48,185.4,8.07977999]
[1735338525060,8.07977999,185.48,185.4,8.07977999]
[1735338525257,8.07977999,185.48,185.38,1.681]
[1735338525556,2.7001,185.45,185.41,2.7005]
[1735338525757,2.7001,185.45,185.42,3.12]
[1735338530360,2.7002,185.44,185.42,3.12]
[1735338545271,2.7003,185.43,185.39,12.33937999]
[1735338545471,2.7003,185.43,185.4,3.12]
[1735338549173,1.5489,185.5,185.39,1.5588]
[1735338549370,2.7007,185.41,185.4,3.12]
[1735338549680,8.07977999,185.45,185.4,3.12]
[1735338549870,2.7002,185.44,185.41,3.12]
[1735338550069,8.07977999,185.45,185.41,3.12]
[1735338550677,2.7004,185.42,185.41,3.12]
[1735338553070,8.07977999,185.43,185.34,3.1598]
[1735338553275,2.7012,185.37,185.34,1.5351]
[1735338553467,2.7012,185.37,185.35,3.12]
[1735338559276,1.6202,185.44,185.35,11.19977999]
[1735338559478,8.07977999,185.42,185.35,13.90127999]
[1735338560476,2.701,185.39,185.35,13.90127999]
[1735338569679,2.701,185.39,185.35,5.8215]
[1735338570484,8.07977999,185.42,185.35,3.12]
[1735338570685,2.7006,185.41,185.37,2.7011]
[1735338581797,8.07977999,185.44,185.4,2.7007]
[1735338581999,8.07977999,185.44,185.41,3.12]
[1735338582298,8.07977999,185.44,185.41,5.8206]
[1735338583393,2.6998,185.47,185.43,2.7002]
[1735338583588,39.2256645,185.49,185.43,8.07977999]
[1735338583794,39.2256645,185.49,185.41,11.19977999]
[1735338584295,41.9251645,185.49,185.44,2.7]
[1735338584889,11.96783386,185.49,185.44,2.7]
[1735338585092,9.26833386,185.49,185.44,2.7]
[1735338585396,2.6996,185.48,185.44,2.7]
[1735338585997,2.6996,185.48,185.43,2.7003]
[1735338588998,9.26833386,185.49,185.43,2.7003]
[1735338589197,2.6997,185.47,185.43,2.7003]
[1735338589802,2.6996,185.48,185.44,2.7001]
[1735338591694,2.6997,185.47,185.43,10.78007999]
[1735338596800,2.6997,185.47,185.44,3.12]
[1735338602203,2.6989,185.53,185.46,2.6999]
[1735338602402,9.08143266,185.56,185.46,2.6999]
[1735338602608,8.07977999,185.52,185.45,8.07977999]
[1735338602803,2.6992,185.51,185.47,2.6997]
[1735338603005,8.07977999,185.5,185.44,11.19977999]
[1735338603704,8.07977999,185.5,185.44,3.12]
[1735338605607,2.6997,185.48,185.44,3.12]
[1735338606505,2.6997,185.48,185.45,8.07977999]
[1735338610413,2.6997,185.48,185.45,10.77977999]
[1735338610912,2.6995,185.49,185.45,10.77977999]
[1735338611611,2.6993,185.5,185.46,2.6997]
[1735338612106,1.5921,185.56,185.47,8.07977999]
[1735338612304,2.6989,185.53,185.44,3.12]
[1735338612611,2.6989,185.53,185.48,8.07977999]
[1735338612812,2.6989,185.53,185.5,8.07977999]
[1735338613510,1.5921,185.56,185.5,8.07977999]
[1735338613809,2.6986,185.55,185.5,8.07977999]
[1735338614412,2.6986,185.55,185.51,2.6991]
[1735338615111,2.6986,185.55,185.52,2.699]
[1735338616012,2.6983,185.57,185.53,2.6988]
[1735338616210,2.6983,185.57,185.54,3.12]
[1735338619519,8.07977999,185.58,185.54,5.8187]
[1735338620413,46.26107595,185.61,185.54,3.12]
[1735338620609,54.34085594,185.61,185.55,2.6984]
[1735338620810,54.34085594,185.61,185.54,11.19977999]
[1735338621511,52.64705594,185.61,185.54,11.19977999]
[1735338622710,1.6843,185.64,185.54,11.19977999]
[1735338622915,8.07977999,185.59,185.45,50.5]
[1735338623117,8.07977999,185.59,185.52,8.07977999]
[1735338623317,8.07977999,185.59,185.53,3.12]
[1735338623616,10.77787999,185.59,185.53,3.12]
[1735338624117,2.6981,185.58,185.54,2.6987]
[1735338626313,1.16063452,185.66,185.54,8.07977999]
[1735338626516,2.6978,185.61,185.56,2.6983]
[1735338626914,2.6978,185.61,185.56,10.77807999]
[1735338629415,2.6978,185.61,185.58,2.6981]
[1735338629712,1.16063452,185.66,185.59,3.1]
[1735338629916,3.85763452,185.66,185.61,2.6976]
[1735338630216,3.85763452,185.66,185.6,8.07977999]
[1735338630915,3.85763452,185.66,185.61,2.6976]
[1735338631318,2.6967,185.68,185.62,8.07977999]
[1735338631514,2.6967,185.68,185.64,2.6972]
[1735338631720,2.6967,185.68,185.65,3.1]
[1735338634718,2.6966,185.69,185.65,3.1]
[1735338635816,9.73487999,185.71,185.65,3.1]
[1735338636017,2.6967,185.68,185.65,3.1]
[1735338640026,4.3515,185.71,185.66,10.77667999]
[1735338640218,1.6551,185.71,185.66,10.77667999]